lending/lending_fUSD_20240130
["ID","MTS","AMOUNT","RATE_DAILY","PERIOD"]
[313005674,1706593832568,-1265.4301506,0.00028028,2]
[313005701,1706593837904,-13102.11658645,0.00028028,2]
[313005703,1706593837913,-247.7384479,0.00028029,2]
[313005705,1706593837923,-2931.04826427,0.00028029,2]
[313005707,1706593837933,-2288.29,0.0002803,2]
[313005709,1706593837943,-160.6,0.00028045,2]
[313005711,1706593837952,-160.6,0.00028165,2]
[313005713,1706593837963,-2288.29,0.00028189,2]
[313005715,1706593837972,-160.6,0.00028284,2]
[313005717,1706593837981,-2288.29,0.00028347,2]
[313005719,1706593837990,-160.6,0.00028403,2]
[313005721,1706593838000,-2288.29,0.00028505,2]
[313005723,1706593838009,-160.6,0.00028522,2]
[313005725,1706593838018,-730.84,0.00028593,2]
[313005726,1706593838028,-160.6,0.00028641,2]
[313005727,1706593838037,-2288.29,0.00028664,2]
[313005728,1706593838046,-747.15,0.00028695,2]
[313005730,1706593838056,-160.6,0.00028761,2]
[313005732,1706593838066,-309.89710719,0.00028798,2]
[313005734,1706593838075,-158.9509689,0.00028798,2]
[313005736,1706593838085,-2288.29,0.00028822,2]
[313005737,1706593838096,-247.06500568,0.00028854,6]
[313005738,1706593838105,-310.46,0.00028854,2]
[313005739,1706593838114,-160.6,0.0002888,2]
[313005740,1706593838123,-713.92,0.00029207,2]
[313005741,1706593838132,-747.15,0.00029719,2]
[313005742,1706593838142,-155.78,0.00029777,2]
[313005743,1706593838151,-210.0,0.00029841,2]
[313005744,1706593838160,-210.0,0.00029841,2]
[313005745,1706593838170,-336.65,0.00029888,2]
[313005746,1706593838179,-332.8591,0.000299,2]
[313005747,1706593838188,-985.38705304,0.00029996,2]
[313005748,1706593838198,-245.95187144,0.00029996,2]
[313005749,1706593838209,-273.01156641,0.00029997,2]
[313005750,1706593838217,-1600.67112597,0.00029997,2]
[313005751,1706593838226,-206.85365988,0.00029998,2]
[313005752,1706593838236,-7796.67632618,0.00029998,2]
[313005754,1706593838248,-26449.36881685,0.00029998,2]
[313005757,1706593838380,-6724.85455948,0.00029998,2]
[313005758,1706593838392,-10175.56634167,0.00029998,2]
[313005759,1706593838403,-410.17314583,0.00029998,2]
[313005760,1706593838414,-10013.89611402,0.00029998,2]
[313005762,1706593838423,-1797.81686648,0.00029999,2]
[313005764,1706593838432,-3923.70407877,0.0003,2]
[313005766,1706593838444,-43172.22643081,0.0003,2]
[313005768,1706593838456,-5071.20068629,0.0003,2]
[313005769,1706593838468,-643.08479251,0.0003,2]
[313005770,1706593838479,-1007.38297438,0.0003,2]
[313005771,1706593841254,-3276.87080573,0.0003,2]
[313005772,1706593841307,-2331.39028314,0.0003,2]
[313005773,1706593841320,-12453.73520136,0.0003,2]
[313005774,1706593841332,-54596.55553606,0.0003,2]
[313005775,1706593841342,-155.0,0.0003,2]
[313005776,1706593841351,-201.57807694,0.0003,4]
[313005777,1706593841361,-167.91,0.00030353,2]
[313005778,1706593841370,-889.61,0.00030479,2]
[313005779,1706593841379,-310.46,0.00030498,2]
[313005780,1706593841389,-747.15,0.00030743,2]
[313005781,1706593841399,-152.29923635,0.00031528,2]
[313005782,1706593841409,-209.0,0.0003162,2]
[313005783,1706593841418,-152.56220176,0.00031713,2]
[313005784,1706593841428,-747.15,0.00031767,2]
[313005785,1706593841437,-2238.0,0.000319,2]
[313005786,1706593841447,-310.46,0.00032142,2]
[313005787,1706593841457,-896.94415208,0.00032151,14]
[313005788,1706593841466,-336.65,0.00032151,2]
[313005789,1706593841476,-152.29923635,0.00032397,2]
[313005790,1706593841485,-179.872861,0.00032527,3]
[313005791,1706593841494,-800.0,0.00032527,3]
[313005792,1706593841504,-365.61723464,0.000327,6]
[313005793,1706593841513,-698.30718108,0.00032777,2]
[313005794,1706593841523,-1047.74719327,0.00032798,4]
[313005795,1706593841533,-156.08152547,0.00032799,2]
[313005796,1706593841546,-150.01,0.00032799,2]
[313005797,1706593841555,-3305.32624244,0.00032799,2]
[313005798,1706593841565,-12700.39050014,0.000328,2]
[313005799,1706593841585,-73087.25921309,0.000328,2]
[313005800,1706593841595,-44815.36478647,0.000328,2]
[313005801,1706593841604,-5630.88659937,0.000328,2]
[313005802,1706593841613,-500.0,0.000328,2]
[313005803,1706593841623,-1581.26868467,0.000328,4]
[313005804,1706593841632,-341.09551,0.000328,2]
[313005805,1706593841642,-2744.228159,0.00032808,2]
[313005806,1706593841651,-68198.92279856,0.00032808,2]
[313005807,1706593841692,-3658.48225581,0.00032808,2]
[313005808,1706593841705,-1798.36029792,0.00032808,2]
[313005809,1706593841717,-1792.98406815,0.00032808,2]
[313005814,1706593842963,-11424.67310568,0.00032808,2]
[313005815,1706593842976,-822.29078517,0.00032808,2]
[313005816,1706593842988,-13554.73864371,0.00032808,2]
[313005817,1706593842999,-1695.1015727,0.00032831,2]
[313005818,1706593843008,-500.0,0.00032877,2]
[313005819,1706593843017,-500.0,0.00032877,2]
[313005820,1706593843027,-152.99,0.00032877,2]
[313005821,1706593843037,-168.33,0.00032877,2]
[313005822,1706593843047,-200.0,0.00033,120]
[313005823,1706593843056,-431.0,0.00033,2]
[313005824,1706593843066,-156.0,0.00033078,5]
[313005825,1706593843075,-3672.99518358,0.00033223,7]
[313005826,1706593843087,-1413.81535929,0.00033223,7]
[313005827,1706593843099,-1145.80337591,0.00033223,7]
[313005828,1706593843111,-1085.42,0.00033223,7]
[313005829,1706593843128,-12136.30269592,0.00033223,7]
[313005830,1706593843140,-1029.01268907,0.00033223,7]
[313005831,1706593843154,-7343.90506277,0.00033223,7]
[313005832,1706593843167,-152.29923635,0.00033265,2]
[313005833,1706593843176,-157.48604117,0.000334,4]
[313005834,1706593843186,-310.46,0.00033786,2]
[313005835,1706593843196,-347.09934095,0.00033865,14]
[313005836,1706593843227,-148.1314602,0.00033865,14]
[313005837,1706593843237,-319.37939146,0.00033865,2]
[313005838,1706593843249,-570.23060854,0.00033865,2]
[313005839,1706593843258,-8.48133729,0.00033869,2]
[313005840,1706593843293,-737.22856164,0.00033869,2]
[313005842,1706593843304,-514.7011426,0.00034,4]
[313005850,1706593845965,-121.45729013,0.00034,4]
[313005851,1706593845975,-168.88870664,0.00034,120]
[313005852,1706593846020,-31.11129336,0.00034,120]
[313005853,1706593846031,-152.29923635,0.00034134,2]
[313005854,1706593846041,-94.98740852,0.00034247,15]
[313005855,1706593846085,-334.58939694,0.00034247,15]
[313005856,1706593846096,-368.69291454,0.00034247,15]
[313005857,1706593846105,-183.98,0.00034363,2]
[313005858,1706593846114,-336.65,0.00034415,2]
[313005859,1706593846123,-209.0,0.00034458,7]
[313005860,1706593846132,-375.45,0.000348,2]
[313005861,1706593846142,-375.45,0.000348,2]
[313005862,1706593846151,-375.45,0.000348,2]
[313005863,1706593846160,-375.45,0.000348,2]
[313005864,1706593846169,-375.45,0.000348,2]
[313005865,1706593846178,-375.45,0.000348,2]
[313005866,1706593846187,-375.45,0.000348,2]
[313005867,1706593846197,-375.45,0.000348,2]
[313005868,1706593846206,-319.02883011,0.000348,2]
[313005869,1706593846219,-56.42116989,0.000348,2]
[313005870,1706593846229,-375.45,0.000348,2]
[313005871,1706593846238,-111.22722273,0.000348,2]
[313005872,1706593846255,-264.22277727,0.000348,2]
[313005873,1706593846264,-375.45,0.000348,2]
[313005874,1706593846273,-375.45,0.000348,2]
[313005885,1706593846476,-375.45,0.000348,2]
[313005886,1706593846487,-375.45,0.000348,2]
[313005887,1706593846496,-29.47533558,0.000348,2]
[313005888,1706593846508,-345.97466442,0.000348,2]
[313005889,1706593846518,-375.45,0.000348,2]
[313005890,1706593846527,-375.45,0.000348,2]
[313005891,1706593846537,-375.45,0.000348,2]
[313005892,1706593846547,-375.45,0.000348,2]
[313005893,1706593846555,-1479.97893934,0.000349,2]
[313005894,1706593846565,-1479.97893932,0.000349,2]
[313005895,1706593846573,-1479.97893932,0.000349,2]
[313005896,1706593846583,-5000.0,0.00035,7]
[313005897,1706593846592,-803.88810021,0.00035,14]
[313005898,1706593846601,-8699.96609364,0.00035,4]
[313005899,1706593846613,-11680.86933538,0.00035,4]
[313005900,1706593846624,-12397.57623429,0.00035,4]
[313005901,1706593846655,-2643.60490948,0.00035,4]
[313005902,1706593846667,-1020.088,0.00035,4]
[313005903,1706593846697,-27648.57117724,0.00035,4]
[313005904,1706593846714,-1307.97577324,0.00035,4]
[313005905,1706593846725,-616.94211156,0.00035,4]
[313005906,1706593846738,-7247.46374268,0.00035,4]
[313005907,1706593869748,68.35,0.00023,2]
[313005908,1706593869778,6535.0,0.00023,2]
[313005909,1706593922732,-9940.0,0.00023,2]
[313005910,1706593934809,150.0,0.000225,2]
[313005911,1706593969898,150.0,0.00022,2]
[313005912,1706593992996,200.0,0.000314,120]
[313005913,1706594012540,150.0,0.00022,2]
[313005914,1706594019564,176.73,0.00022,2]
[313005916,1706594035971,500.0,0.00022,2]
[313005928,1706594284135,-1061.0,0.00022547,2]
[313005929,1706594284158,-228.85160586,0.00022548,2]
[313005930,1706594324891,496.64137415,0.00022547,2]
[313005931,1706594381339,578.31253874,0.00022547,4]
[313005932,1706594533278,355.85,0.00022526,2]
[313005933,1706594543779,321.44448125,0.00022526,2]
[313005934,1706594554809,784.31,0.0002244,2]
[313005935,1706594583044,14481.06,0.0002244,2]
[313005936,1706594641788,286.74856268,0.00022,2]
[313005937,1706594647606,176.73,0.00022,2]
[313005938,1706594663088,500.0,0.00022,2]
[313005939,1706594665088,252.48,0.00020771,2]
[313005940,1706594752773,155.23,0.00022425,2]
[313005941,1706594778625,250.0,0.00022,2]
[313005942,1706594779901,250.0,0.00022274,2]
[313005943,1706594845613,200.0,0.000227,8]
[313005944,1706594846264,250.0,0.00022407,2]
[313005945,1706594846292,-2131.62551875,0.00022526,2]
[313005946,1706594846313,-176.73,0.00022548,2]
[313005947,1706594846332,-578.74456931,0.00022548,2]
[313005948,1706594846352,-451.84301507,0.00022548,2]
[313005949,1706594846373,-155.45,0.00022599,2]
[313005950,1706594846392,-300.0,0.00022612,2]
[313005951,1706594846412,-6904.28811796,0.00022613,2]
[313005952,1706594847737,500.0,0.000228,8]
[313005953,1706594849834,800.0,0.000229,8]
[313005954,1706594903968,592.88,0.00021991,2]
[313005955,1706594927035,750.0,0.00021998,2]
[313005956,1706594948040,2000.0,0.00022038,2]
[313005957,1706594948160,-156.47853946,0.00022515,2]
[313005958,1706594948182,-156.47853942,0.00022554,2]
[313005959,1706594948203,-42.69292112,0.00022592,2]
[313005960,1706594950121,-113.7856183,0.00022592,2]
[313005961,1706594950145,-2262.76803708,0.00022613,2]
[313005962,1706594954151,-9878.52600255,0.00022613,2]
[313005963,1706594954175,-171.47,0.00022617,2]
[313005964,1706594954198,-156.47853942,0.00022631,2]
[313005965,1706594954222,-156.47853942,0.00022669,2]
[313005966,1706594954244,-150.0,0.00022689,2]
[313005967,1706594954267,-156.47853942,0.00022708,2]
[313005968,1706594954289,-156.47853942,0.00022746,2]
[313005969,1706594954312,-45713.26183977,0.0002277,2]
[313005970,1706594961123,-362.77,0.0002277,2]
[313005971,1706594972108,-2553.02864409,0.00022769,2]
[313005972,1706594973125,-5726.83474331,0.00022769,2]
[313005973,1706594973146,-36797.37067402,0.0002277,2]
[313005974,1706594973591,150.0,0.00022,2]
[313005975,1706594978920,156.32214146,0.00022,2]
[313005976,1706595002967,150.0,0.00022,2]
[313006015,1706595032382,-150.0,0.00022548,2]
[313006016,1706595032391,-150.0,0.00022548,2]
[313006017,1706595032400,-2005.92735655,0.0002277,2]
[313006018,1706595032412,-1069.58567382,0.0002277,2]
[313006019,1706595032424,-3062.44528538,0.0002277,2]
[313006021,1706595032449,-1809.51341481,0.0002277,2]
[313006025,1706595032469,-2205.57504085,0.0002277,2]
[313006027,1706595032481,-446.48737761,0.0002277,2]
[313006030,1706595032495,-435.79844913,0.0002277,2]
[313006032,1706595032506,-51190.47888841,0.0002277,2]
[313006065,1706595038128,-5835.77186741,0.0002277,2]
[313006066,1706595038951,-643.1294748,0.0002277,2]
[313006067,1706595039007,-529.05901152,0.0002277,2]
[313006068,1706595039339,-716.79,0.0002277,2]
[313006069,1706595039364,-10890.6211417,0.0002277,2]
[313006070,1706595039376,-20521.26197028,0.0002277,2]
[313006071,1706595039396,-7677.89020334,0.0002277,2]
[313006076,1706595041298,-6007.21619384,0.0002277,2]
[313006077,1706595041408,-2799.18,0.0002277,2]
[313006078,1706595041420,-299.1128838,0.0002277,2]
[313006079,1706595041465,-510.13070881,0.0002277,2]
[313006080,1706595041477,-1119.993,0.0002277,2]
[313006081,1706595041573,-272.65594049,0.0002277,2]
[313006082,1706595041631,-8270.7666,0.0002277,2]
[313006112,1706595045974,-606.39198877,0.0002277,2]
[313006113,1706595046003,-89534.81501489,0.0002277,2]
[313006115,1706595046012,-156.47853942,0.00022785,2]
[313006117,1706595046022,-557.97,0.00022803,2]
[313006119,1706595046031,-250.0,0.00022803,2]
[313006121,1706595046042,-967.71,0.00022817,2]
[313006122,1706595046052,-1958.13,0.00022818,2]
[313006123,1706595046061,-156.47853942,0.00022823,2]
[313006125,1706595046071,-156.47853942,0.00022862,2]
[313006126,1706595046080,-598.1247,0.00022887,2]
[313006128,1706595046090,-4655.74947603,0.00022897,2]
[313006130,1706595046100,-18197.58733973,0.00022897,2]
[313006132,1706595046109,-499.99,0.00022897,2]
[313006133,1706595046119,-233.61,0.00022897,2]
[313006135,1706595046129,-531.27578877,0.00022898,2]
[313006137,1706595046139,-43544.54040162,0.00022898,2]
[313006139,1706595046149,-999.99,0.00022898,2]
[313006141,1706595046159,-164.21648366,0.000229,2]
[313006144,1706595046168,-2901.59860117,0.000229,2]
[313006147,1706595046178,-169.40558037,0.000229,2]
[313006150,1706595046188,-152.49679437,0.000229,2]
[313006153,1706595046197,-464.99381565,0.000229,2]
[313006156,1706595046207,-594.25254763,0.000229,2]
[313006158,1706595046217,-156.47853942,0.000229,2]
[313006160,1706595046227,-243.18098994,0.000229,2]
[313006161,1706595046237,-249.42298455,0.000229,2]
[313006162,1706595046247,-4820.02695054,0.000229,2]
[313006163,1706595046257,-3196.52071384,0.000229,2]
[313006164,1706595046266,-312.45853588,0.00022997,2]
[313006165,1706595046276,-5482.17486807,0.00022997,2]
[313006166,1706595046287,-6451.8437518,0.00022997,2]
[313006167,1706595046296,-205.12033352,0.00022997,2]
[313006168,1706595046306,-175.47632281,0.00022997,2]
[313006169,1706595046316,-2928.45054442,0.00022997,2]
[313006170,1706595046326,-203.01344024,0.00022998,2]
[313006171,1706595046337,-2807.51865324,0.00022998,2]
[313006172,1706595046347,-10570.52821242,0.00022999,2]
[313006174,1706595046357,-371.01115216,0.00022999,2]
[313006175,1706595046366,-155.3695107,0.00022999,2]
[313006176,1706595046375,-801.62768654,0.00022999,2]
[313006177,1706595046384,-803.38797327,0.00022999,2]
[313006178,1706595046393,-292.50881528,0.00022999,2]
[313006179,1706595046403,-1351.39278011,0.00023,2]
[313006181,1706595046415,-359.05198259,0.00023,2]
[313006182,1706595046485,-1229.87908631,0.00023,2]
[313006183,1706595046496,-1798.95906186,0.00023,2]
[313006184,1706595046516,-602.83981821,0.00023,2]
[313006185,1706595046527,-500.0,0.00023,2]
[313006186,1706595046538,-17215.34265634,0.00023,2]
[313006187,1706595046553,-2105.55,0.00023,2]
[313006188,1706595046565,-1239.75904694,0.00023,2]
[313006189,1706595046634,-244.15151875,0.00023,2]
[313006190,1706595046658,-302.03380715,0.00023,2]
[313006191,1706595136636,531.39577498,0.00022078,2]
[313006192,1706595141533,414.03595538,0.00021,2]
[313006193,1706595159358,162.03710518,0.00020698,2]
[313006194,1706595159527,207.88876306,0.00021,2]
[313006195,1706595160249,1229.8431837,0.00020698,2]
[313006196,1706595160591,263.94933428,0.00022078,2]
[313006197,1706595278648,176.73,0.00022,2]
[313006198,1706595305047,150.0,0.00022,2]
[313006199,1706595354883,165.22,0.00027072,120]
[313006200,1706595373411,150.0,0.00022,2]
[313006201,1706595441818,150.0,0.00022,2]
[313006202,1706595509893,150.0,0.00022,2]
[313006205,1706595908053,176.73,0.00022,2]
[313006206,1706596030139,-176.73,0.00022548,2]
[313006207,1706596030159,-283.08570456,0.00022768,2]
[313006208,1706596030179,-68.74790382,0.000228,2]
[313006209,1706596157716,-231.25209618,0.000228,2]
[313006210,1706596157736,-150.0,0.00022898,2]
[313006211,1706596157757,-1270.98715961,0.00022899,2]
[313006212,1706596177837,298.01270489,0.00022,2]
[313006213,1706596220953,150.0,0.00022,2]
[313006219,1706596232268,-150.0,0.00022548,2]
[313006221,1706596232278,-2421.16321385,0.00022899,2]
[313006222,1706596232320,-1556.34564862,0.00022899,2]
[313006223,1706596232332,-7878.02934511,0.00022899,2]
[313006224,1706596232342,-2376.97065488,0.000229,2]
[313006225,1706596232382,-1230.34354417,0.000229,2]
[313006226,1706596232440,-507.99999975,0.000229,2]
[313006237,1706596238328,-4859.36430493,0.000229,2]
[313006238,1706596238381,-3050.15149627,0.000229,2]
[313006239,1706596238391,-1000.0,0.000229,2]
[313006240,1706596238401,-410.304,0.000229,2]
[313006241,1706596238410,-2659.79871773,0.000229,2]
[313006242,1706596238420,-365.7836,0.000229,2]
[313006243,1706596238429,-152.49679437,0.000229,2]
[313006244,1706596238438,-251.7794,0.000229,2]
[313006245,1706596238448,-475.40203808,0.000229,2]
[313006246,1706596238456,-683.13931994,0.000229,2]
[313006247,1706596238466,-162.12065996,0.000229,2]
[313006248,1706596238477,-1211.71301299,0.000229,2]
[313006249,1706596238489,-1000.0,0.00022999,2]
[313006250,1706596238499,-982.3737,0.00022999,2]
[313006251,1706596238508,-47377.82193487,0.00023,2]
[313006252,1706596238654,-13049.94779998,0.00023,2]
[313006253,1706596238669,-5219.0829408,0.00023,2]
[313006254,1706596238685,-4887.83082478,0.00023,2]
[313006255,1706596238712,-423.356324,0.00023,2]
[313006256,1706596238731,-4906.23264509,0.00023,2]
[313006257,1706596238747,-445.94319877,0.00023,2]
[313006258,1706596238758,-22321.59631398,0.00023,2]
[313006259,1706596238769,-881.19037707,0.00023,2]
[313006262,1706596241606,-2481.3278554,0.00023,2]
[313006263,1706596241618,-9635.99999998,0.00023,2]
[313006264,1706596241631,-410.000007,0.00023,2]
[313006265,1706596241664,-544.13000421,0.00023,2]
[313006266,1706596241724,-2624.06365033,0.00023,2]
[313006267,1706596241780,-738.215015,0.00023,2]
[313006269,1706596241793,-2259.80024943,0.00023,2]
[313006281,1706596243601,-0.00730635,0.00022999,2]
[313006286,1706596246344,-87.0456079,0.00022999,2]
[313006287,1706596246541,-453.54604063,0.00022999,2]
[313006288,1706596270201,3172.40086865,0.00026,7]
[313006289,1706596540389,176.73,0.00022,2]
[313006290,1706596613851,500.0,0.00028,30]
[313006291,1706596844080,-176.73,0.00022548,2]
[313006292,1706596844104,-728.39,0.000229,2]
[313006293,1706596844126,-713.42,0.000229,2]
[313006294,1706596844149,-717.37,0.000229,2]
[313006295,1706596844171,-1000.0,0.000229,2]
[313006296,1706596844193,-152.49679437,0.000229,2]
[313006297,1706596844215,-380.32163048,0.000229,2]
[313006298,1706596844236,-151.13457567,0.000229,2]
[313006299,1706596844258,-162.12065995,0.000229,2]
[313006300,1706596844279,-807.80867534,0.000229,2]
[313006301,1706596844305,-2500.0,0.000229,2]
[313006302,1706596844327,-155.0,0.00022998,2]
[313006303,1706596844350,-1000.0,0.00022998,2]
[313006304,1706596844372,-361.65853082,0.00022998,2]
[313006305,1706596844393,-595.33605946,0.00022998,2]
[313006306,1706596844416,-12131.26621286,0.00022999,2]
[313006307,1706596844437,-1284.47330322,0.00022999,5]
[313006308,1706596844460,-562.86462881,0.00022999,5]
[313006309,1706596844483,-1000.0,0.00022999,2]
[313006310,1706596844506,-75419.60892902,0.00023,2]
[313006311,1706596909516,156.08152547,0.00020698,2]
[313006312,1706597166010,176.73,0.00022,2]
[313006313,1706597225117,-176.73,0.00022548,2]
[313006314,1706597225141,-304.25730436,0.000229,2]
[313006315,1706597225164,-458.77907206,0.000229,2]
[313006316,1706597347192,-152.29923641,0.000228,2]
[313006317,1706597347211,-1206.63168403,0.00022899,2]
[313006318,1706597347234,-2263.68261602,0.000229,2]
[313006319,1706597347253,-199.21833495,0.000229,2]
[313006320,1706597347273,-323.39065559,0.000229,2]
[313006321,1706597348520,-676.60934441,0.000229,2]
[313006322,1706597348542,-152.54540823,0.000229,2]
[313006323,1706597348563,-383.06727972,0.000229,2]
[313006324,1706597348582,-162.12065995,0.000229,2]
[313006325,1706597348602,-664.20368747,0.000229,2]
[313006326,1706597348626,-538.53911688,0.000229,2]
[313006327,1706597348648,-3351.39773732,0.00022996,2]
[313006328,1706597348671,-1047.74719327,0.00022999,2]
[313006329,1706597348693,-63065.72078567,0.00023,2]
[313006330,1706597363314,-2588.31628921,0.00023,2]
[313006331,1706597363348,-2029.37637642,0.00023,2]
[313006332,1706597364138,-283.11399448,0.00023,2]
[313006333,1706597365440,-14937.2871093,0.00023,2]
[313006334,1706597369144,-27716.92117724,0.00023,2]
[313006335,1706597370162,-7139.46366711,0.00023,2]
[313006336,1706597427734,150.0,0.00022,2]
[313006347,1706597431475,-150.0,0.00022548,2]
[313006348,1706597431485,-2314.8213102,0.00023,2]
[313006349,1706597431498,-987.38231631,0.00023,2]
[313006350,1706597431521,-735.1422141,0.00023,2]
[313006351,1706597431534,-13346.13247094,0.00023,2]
[313006352,1706597431549,-1158.45306986,0.00023,2]
[313006353,1706597431565,-1037.3153504,0.00023,2]
[313006354,1706597431615,-993.79654298,0.00023,2]
[313006355,1706597431628,-5123.51393727,0.00023,2]
[313006356,1706597431668,-357.61614109,0.00023,2]
[313006357,1706597431680,-3696.08,0.00023,2]
[313006358,1706597431692,-566.4447676,0.00023,2]
[313006359,1706597431731,-421.07761078,0.00023,2]
[313006360,1706597431743,-8668.66608,0.00023,2]
[313006361,1706597431754,-2720.95709496,0.00023,2]
[313006362,1706597431767,-6968.84925178,0.00023,2]
[313006363,1706597431779,-601.37849343,0.00023,2]
[313006364,1706597431795,-2842.58542501,0.00023,2]
[313006366,1706597431807,-2929.20380186,0.00023,2]
[313006378,1706597439115,-21649.49999999,0.00023,2]
[313006379,1706597439285,-601.81271131,0.00023,2]
[313006380,1706597439458,-362.33147767,0.00023,2]
[313006480,1706597440701,-1383.42159617,0.00023,2]
[313006481,1706597440762,-2303.32343076,0.00023,2]
[313006482,1706597440775,-1537.76342422,0.00023,2]
[313006483,1706597440786,-825.28,0.00023,2]
[313006484,1706597440797,-756.131,0.00023,2]
[313006485,1706597440809,-315.6,0.00023,2]
[313006486,1706597440828,-559.05042961,0.00023,2]
[313006496,1706597444415,-1278.61587429,0.00023,2]
[313006497,1706597444427,-10032.7072297,0.00023,2]
[313006498,1706597444533,-1050.0,0.00023,2]
[313006499,1706597444708,-10510.64500001,0.00023,2]
[313006501,1706597444720,-3433.8014853,0.00023,2]
[313006583,1706597445644,-4249.38179999,0.00023,2]
[313006628,1706597449470,-265.58002054,0.00022999,2]
[313006630,1706597528503,946.92203184,0.00020698,5]
[313006631,1706597802508,348.52463702,0.00021998,2]
[313006632,1706597825299,218.36,0.0002353,10]
[313006633,1706597825502,218.36,0.00025836,10]
[313006634,1706597858647,556.72909579,0.00020698,5]
[313006635,1706597860569,491.88467827,0.00020696,5]
[313006637,1706598042206,715.32,0.00022205,2]
[313006638,1706598088994,500.0,0.00022254,2]
[313006639,1706598098964,250.0,0.00022345,2]
[313006640,1706598100579,298.11,0.00020427,2]
[313006641,1706598132235,448.08813739,0.00022467,2]
[313006642,1706598138033,391.34345153,0.00022468,2]
[313006643,1706598138052,56.74468585,0.00022468,2]
[313006644,1706598144047,448.08813738,0.00022468,2]
[313006645,1706598148929,166.01,0.00022289,2]
[313006646,1706598180818,1431.33,0.00022234,2]
[313006647,1706598185892,150.0,0.00022234,2]
[313006648,1706598190187,282.33,0.00022234,2]
[313006649,1706598222841,156.88109996,0.00022462,2]
[313006650,1706598223046,1308.61607681,0.00022281,3]
[313006651,1706598223067,1191.38392319,0.00022281,3]
[313006652,1706598274125,-200.0,0.00022554,2]
[313006653,1706598274146,-1816.36039135,0.00022558,2]
[313006654,1706598274182,-792.25568546,0.00022559,2]
[313006655,1706598292400,250.0,0.00022297,2]
[313006656,1706598295179,-4000.0,0.00022558,2]
[313006657,1706598295850,168.24,0.00022297,2]
[313006658,1706598297272,-3803.03250074,0.00022558,2]
[313006659,1706598297293,-196.96749926,0.00022559,2]
[313006660,1706598298769,-4000.0,0.00022559,2]
[313006661,1706598300121,-4000.0,0.00022559,2]
[313006662,1706598301237,25095.51,0.00022464,2]
[313006663,1706598301568,-4000.0,0.00022559,2]
[313006664,1706598302524,-4000.0,0.00022559,2]
[313006665,1706598303754,-2848.61465833,0.00022559,2]
[313006666,1706598303775,-150.0,0.00022561,2]
[313006667,1706598303796,-1001.38534167,0.0002257,2]
[313006668,1706598304882,-3497.31700838,0.0002257,2]
[313006669,1706598304903,-502.68299162,0.00022571,2]
[313006670,1706598305958,2000.0,0.00022397,2]
[313006671,1706598305996,-4000.0,0.00022571,2]
[313006672,1706598307051,-4000.0,0.00022571,2]
[313006673,1706598308176,-4000.0,0.00022571,2]
[313006674,1706598309457,-4000.0,0.00022571,2]
[313006675,1706598310365,-4000.0,0.00022571,2]
[313006676,1706598311427,-3363.67700838,0.00022571,2]
[313006677,1706598311449,-171.41,0.00022642,2]
[313006678,1706598311470,-298.11,0.00022691,2]
[313006679,1706598311490,-166.80299162,0.00022718,2]
[313006680,1706598312534,-977.81700838,0.00022718,2]
[313006681,1706598312555,-3022.18299162,0.00022769,2]
[313006682,1706598313666,-3027.89061252,0.00022769,2]
[313006683,1706598313686,-171.41,0.00022878,2]
[313006684,1706598313705,-800.69938748,0.00022898,2]
[313006685,1706598314817,-4000.0,0.00022898,2]
[313006686,1706598315928,-540.70901252,0.00022898,2]
[313006687,1706598315948,-1000.0,0.000229,2]